bitfinex/quotes_BTCUSD_20220307
["timestamp","ask_amount","ask_price","bid_price","bid_amount"]
[1646635075020,0.1,38179.0,38178.0,0.16923557]
[1646635075218,0.31366132,38179.0,38178.0,0.16923557]
[1646635075818,0.1,38179.0,38178.0,0.16923557]
[1646635076020,0.1,38179.0,38178.0,0.1691295]
[1646635076219,0.1,38179.0,38176.0,0.39690125]
[1646635076424,0.392221,38178.0,38176.0,0.39690125]
[1646635076623,0.21366132,38177.0,38176.0,0.39690125]
[1646635076819,0.70588232,38177.0,38176.0,0.39690125]
[1646635077220,0.492221,38177.0,38176.0,0.39690125]
[1646635077720,0.68141721,38177.0,38176.0,0.39690125]
[1646635078965,0.67741721,38177.0,38176.0,0.39690125]
[1646635079868,0.68141721,38177.0,38176.0,0.39690125]
[1646635081069,0.67741721,38177.0,38176.0,0.39690125]
[1646635081917,0.68141721,38177.0,38176.0,0.39690125]
[1646635082113,0.70987536,38177.0,38176.0,0.39690125]
[1646635082914,0.70987536,38177.0,38176.0,0.39699463]
[1646635083113,0.70587536,38177.0,38176.0,0.39699463]
[1646635083415,0.71095732,38177.0,38176.0,0.39699463]
[1646635083813,0.71495732,38177.0,38176.0,0.39699463]
[1646635084824,0.92860437,38177.0,38176.0,0.39699463]
[1646635085215,0.92460437,38177.0,38176.0,0.39699463]
[1646635085477,0.9246065,38177.0,38176.0,0.39699463]
[1646635085777,0.71495732,38177.0,38176.0,0.39699463]
[1646635087280,0.496221,38177.0,38176.0,0.39699463]
[1646635087682,0.492221,38177.0,38176.0,0.39699463]
[1646635087882,0.496221,38177.0,38176.0,0.39699463]
[1646635088380,0.70985421,38177.0,38176.0,0.39699463]
[1646635088982,0.21363321,38178.0,38176.0,0.39699463]
[1646635089417,0.21363321,38179.0,38176.0,0.39699463]
[1646635089611,0.21363321,38180.0,38176.0,0.39699463]
[1646635089810,0.21363321,38180.0,38177.0,0.38651676]
[1646635090012,0.21363321,38180.0,38176.0,0.39699463]
[1646635090813,0.21363321,38180.0,38177.0,0.77873776]
[1646635091016,0.21363321,38182.0,38177.0,0.77873776]
[1646635091214,0.21363321,38183.0,38177.0,0.77873776]
[1646635091414,0.21363321,38184.0,38177.0,0.77873776]
[1646635091814,0.21363321,38184.0,38179.0,0.21444583]
[1646635092019,0.21363321,38184.0,38182.0,0.27538288]
[1646635092414,0.21363321,38185.0,38182.0,0.27538288]
[1646635093465,0.47801204,38187.0,38179.0,0.21444583]
[1646635093466,0.21363321,38184.0,38179.0,0.21444583]
[1646635093663,0.21363321,38184.0,38179.0,0.006091]
[1646635093863,0.21363321,38184.0,38178.0,9.304e-05]
[1646635094064,0.21363321,38183.0,38178.0,9.304e-05]
[1646635094263,0.21363321,38183.0,38179.0,0.392221]
[1646635094463,0.21363321,38184.0,38179.0,0.392221]
[1646635094665,0.21363321,38183.0,38179.0,0.392221]
[1646635094863,0.21363321,38184.0,38178.0,9.304e-05]
[1646635095462,0.21363321,38184.0,38179.0,0.392221]
[1646635095862,0.21363321,38183.0,38178.0,9.304e-05]
[1646635096064,0.21363321,38183.0,38179.0,0.392221]
[1646635096463,0.21363321,38184.0,38179.0,0.392221]
[1646635096711,0.21363321,38184.0,38178.0,9.304e-05]
[1646635096910,0.21363321,38184.0,38179.0,0.392221]
[1646635097114,0.17540664,38181.0,38178.0,9.304e-05]
[1646635097314,0.17540664,38181.0,38179.0,0.392221]
[1646635097712,0.17540664,38181.0,38177.0,0.63193791]
[1646635097913,0.17540664,38181.0,38178.0,0.392221]
[1646635098112,0.17540664,38181.0,38177.0,0.00011105]
[1646635098313,0.38903985,38181.0,38177.0,0.00011105]
[1646635098613,0.1,38180.0,38177.0,0.00011105]
[1646635098813,0.31363321,38180.0,38177.0,0.00011105]
[1646635099822,0.31463321,38180.0,38177.0,0.00011105]
[1646635100469,0.101,38180.0,38177.0,0.00011105]
[1646635100869,0.31463321,38180.0,38177.0,0.00011105]
[1646635101271,0.31363321,38180.0,38177.0,0.00011105]
[1646635101869,0.31463321,38180.0,38177.0,0.00011105]
[1646635102875,0.31463321,38180.0,38176.0,0.3970127]
[1646635103071,0.31363321,38180.0,38176.0,0.3970127]
[1646635103271,0.31363321,38180.0,38177.0,0.006118]
[1646635103574,0.1,38180.0,38177.0,0.006107]
[1646635103772,0.21363321,38181.0,38177.0,0.006107]
[1646635104234,0.21363321,38181.0,38177.0,0.392221]
[1646635104417,0.21363321,38182.0,38176.0,0.3970127]
[1646635104616,0.21363321,38182.0,38177.0,0.77873776]
[1646635104819,0.21363321,38181.0,38176.0,0.3970127]
[1646635105120,0.21363321,38179.0,38176.0,0.3970127]
[1646635105318,0.21363321,38179.0,38177.0,0.392221]
[1646635105717,0.21363321,38179.0,38176.0,0.3970127]
[1646635106318,0.3785586,38179.0,38175.0,0.392221]
[1646635107621,0.3785586,38179.0,38178.0,8.613e-05]
[1646635107818,0.21563321,38179.0,38178.0,8.613e-05]
[1646635109265,0.21363321,38179.0,38178.0,8.613e-05]
[1646635109868,0.21363321,38180.0,38178.0,8.613e-05]
[1646635110368,0.21363321,38180.0,38179.0,0.392221]
[1646635110569,0.21363321,38181.0,38179.0,0.392221]
[1646635110767,0.21363321,38181.0,38178.0,8.613e-05]
[1646635111368,0.21363321,38181.0,38179.0,0.392221]
[1646635111569,0.21363321,38181.0,38178.0,8.613e-05]
[1646635112016,0.21363321,38182.0,38179.0,0.392221]
[1646635112315,0.21363321,38182.0,38178.0,8.613e-05]
[1646635113016,0.21363321,38180.0,38174.0,0.38833668]
[1646635113217,0.21363321,38180.0,38175.0,0.392221]
[1646635113515,0.21363321,38181.0,38175.0,0.392221]
[1646635113915,0.21363321,38180.0,38175.0,0.392221]
[1646635115572,0.21363321,38181.0,38175.0,0.392221]
[1646635116468,0.21363321,38181.0,38177.0,0.00614]
[1646635116867,0.21363321,38181.0,38178.0,0.392186]
[1646635117269,0.21363321,38181.0,38179.0,0.006139]
[1646635117469,0.63102213,38181.0,38177.0,9.476e-05]
[1646635117670,0.21363321,38180.0,38177.0,9.476e-05]
[1646635118470,0.60585421,38179.0,38178.0,0.65361821]
[1646635118700,0.392221,38179.0,38178.0,0.65361821]
[1646635118876,0.88046306,38179.0,38178.0,0.65361821]
[1646635119073,1.14746409,38179.0,38178.0,0.65361821]
[1646635119319,0.88046306,38179.0,38178.0,0.65361821]
[1646635119520,1.38907228,38179.0,38178.0,0.65361821]
[1646635121120,1.12207125,38179.0,38178.0,0.65361821]
[1646635121924,1.38907228,38179.0,38178.0,0.65361821]
[1646635122963,1.38907228,38179.0,38178.0,0.65371283]
[1646635124465,1.00083022,38179.0,38178.0,0.65371283]
[1646635124866,0.36700103,38179.0,38178.0,0.65371283]
[1646635125068,0.1,38179.0,38178.0,0.65371283]
[1646635125870,0.104,38179.0,38178.0,0.65371283]
[1646635126272,0.31771897,38179.0,38178.0,0.65371283]
[1646635126471,0.21771897,38179.0,38178.0,0.65371283]
[1646635127116,0.21371897,38179.0,38178.0,0.65371283]
[1646635128717,0.26700103,38180.0,38178.0,0.65371283]
[1646635129517,0.20384923,38179.0,38178.0,0.65371283]
[1646635129718,0.47085026,38179.0,38178.0,0.65371283]
[1646635130017,0.103,38180.0,38178.0,0.65371283]
[1646635130216,0.21372919,38179.0,38178.0,0.65371283]
[1646635131068,0.27000103,38180.0,38178.0,0.65371283]
[1646635131268,0.26700103,38180.0,38178.0,0.65371283]
[1646635132166,0.26700103,38179.0,38178.0,0.65371283]
[1646635133364,0.26700103,38180.0,38178.0,0.65371283]
[1646635133966,0.26700103,38181.0,38178.0,0.65371283]
[1646635134214,0.21375405,38179.0,38178.0,0.65371283]
[1646635136219,0.21375405,38179.0,38178.0,0.0834237]
[1646635137966,0.21475405,38179.0,38178.0,0.0834237]
[1646635138362,0.20475405,38179.0,38178.0,0.0834237]
[1646635138563,0.001,38179.0,38178.0,0.0834237]
[1646635139162,0.32007814,38181.0,38178.0,0.0834237]
[1646635139770,0.32007814,38180.0,38178.0,0.0834237]
[1646635140365,0.49183362,38180.0,38178.0,0.0834237]
[1646635141564,0.17175548,38180.0,38178.0,0.0834237]
[1646635141823,0.49183362,38180.0,38178.0,0.0834237]
[1646635142023,0.32307814,38180.0,38178.0,0.0834237]
[1646635142724,0.32307814,38180.0,38178.0,0.08332908]
[1646635143323,0.32007814,38180.0,38178.0,0.08332908]
[1646635143925,0.32207814,38180.0,38178.0,0.08332908]
[1646635144923,0.392221,38179.0,38178.0,0.08332908]
[1646635145972,0.71429914,38179.0,38178.0,0.08332908]
[1646635146166,0.09243294,38177.0,38173.0,0.001]
[1646635146366,0.3596315,38177.0,38173.0,0.001]
[1646635146968,0.17680706,38176.0,38173.0,0.001]
[1646635147366,0.17680706,38176.0,38172.0,0.00022046]
[1646635147969,0.17680706,38176.0,38170.0,0.1]
[1646635148268,0.17680706,38176.0,38172.0,0.00022046]
[1646635148467,0.2137541,38175.0,38172.0,0.00022046]
[1646635150417,0.2137541,38175.0,38170.0,0.392221]
[1646635150619,0.2137541,38175.0,38172.0,0.00022046]
[1646635151017,0.2137541,38175.0,38173.0,0.392221]
[1646635151422,0.2137541,38175.0,38173.0,0.006167]
[1646635151625,0.2137541,38175.0,38170.0,0.392221]
[1646635151824,0.2137541,38175.0,38172.0,0.00022046]
[1646635152418,0.2137541,38175.0,38172.0,0.00640846]
[1646635152718,0.2137541,38175.0,38169.0,0.75194936]
[1646635152719,0.2137541,38175.0,38174.0,9.52e-05]
[1646635153569,0.2137541,38176.0,38174.0,9.52e-05]
[1646635154669,0.2137541,38176.0,38175.0,0.15558848]
[1646635154873,0.2137541,38176.0,38175.0,0.16175248]
[1646635155472,0.2137541,38176.0,38175.0,0.006164]
[1646635155673,0.30618704,38177.0,38174.0,9.52e-05]
[1646635155871,0.30618704,38177.0,38175.0,0.006163]
[1646635156274,0.09243294,38177.0,38173.0,0.392171]
[1646635156472,0.30618704,38177.0,38174.0,0.39087048]
[1646635156722,0.30618704,38177.0,38175.0,0.006162]
[1646635157724,0.30618704,38177.0,38175.0,0.00625705]
[1646635158126,0.30618704,38177.0,38175.0,9.505e-05]
[1646635159326,0.30618704,38177.0,38172.0,0.336186]
[1646635159528,0.30618704,38177.0,38173.0,0.392239]
[1646635160868,0.30618704,38177.0,38173.0,0.006096]
[1646635161073,0.30618704,38177.0,38172.0,0.00022046]
[1646635161273,0.2137541,38176.0,38171.0,0.7840681]
[1646635161471,0.2137541,38176.0,38172.0,0.00022046]
[1646635161671,0.2137541,38176.0,38173.0,0.392239]
[1646635162470,0.2137541,38176.0,38172.0,0.392239]
[1646635162672,0.2137541,38176.0,38172.0,0.39245946]
[1646635163071,0.2137541,38176.0,38174.0,0.00011425]
[1646635164073,0.2137541,38175.0,38174.0,0.00011425]
[1646635164318,0.32007814,38180.0,38176.0,1.25]
[1646635164524,0.38015348,38186.0,38176.0,1.25]
[1646635164525,0.38015348,38186.0,38179.0,0.15]
[1646635164720,0.38015348,38186.0,38181.0,0.02627]
[1646635164721,0.2706667,38184.0,38181.0,0.02627]
[1646635164918,0.2706667,38184.0,38182.0,0.058386]
[1646635165117,0.32007814,38191.0,38183.0,0.41573868]
[1646635165118,0.00088154,38187.0,38183.0,0.41573868]
[1646635165316,0.00088154,38187.0,38184.0,0.75692942]
[1646635165517,0.00088154,38187.0,38185.0,0.38946868]
[1646635165719,0.00088154,38187.0,38186.0,0.158381]
[1646635166117,0.32007814,38195.0,38186.0,0.158381]
[1646635166317,0.0002204,38191.0,38185.0,0.38946868]
[1646635166516,0.0002204,38191.0,38186.0,0.392239]
[1646635166921,0.16897652,38190.0,38186.0,0.392239]
[1646635167121,0.19035517,38186.0,38182.0,0.165494]
[1646635167321,0.19035517,38186.0,38183.0,0.00595]
[1646635167972,0.19035517,38186.0,38178.0,0.00209586]
[1646635167973,0.392239,38184.0,38178.0,0.00209586]
[1646635168274,0.1,38184.0,38178.0,0.00209586]
[1646635168769,0.1,38182.0,38179.0,0.392239]
[1646635168969,0.1,38183.0,38179.0,0.392239]
[1646635169170,0.29460493,38183.0,38179.0,0.392239]
[1646635169469,0.29460493,38183.0,38179.0,0.006013]
[1646635169770,0.29460493,38183.0,38179.0,0.006023]
[1646635169972,0.29460493,38183.0,38179.0,0.392239]
[1646635170871,0.29460493,38183.0,38178.0,9.586e-05]
[1646635171571,0.29460493,38183.0,38179.0,0.392239]
[1646635171833,0.19035517,38186.0,38179.0,0.392239]
[1646635172034,0.42096036,38189.0,38179.0,0.457751]
[1646635172035,0.41507814,38189.0,38179.0,0.457751]
[1646635172239,0.10088222,38189.0,38180.0,0.38726296]
[1646635172835,0.16987725,38186.0,38180.0,0.38726296]
[1646635173034,0.16987725,38186.0,38182.0,0.62185251]
[1646635173235,0.16987725,38186.0,38182.0,0.22961351]
[1646635173441,0.16987725,38186.0,38183.0,0.392239]
[1646635173838,0.16987725,38186.0,38182.0,0.22961351]
[1646635174636,0.21356927,38188.0,38182.0,0.22961351]
[1646635175244,0.21356927,38189.0,38183.0,0.392239]
[1646635175467,0.21356927,38189.0,38182.0,0.27961351]
[1646635175667,0.18772434,38188.0,38182.0,0.27961351]
[1646635176067,0.18772434,38188.0,38184.0,0.392239]
[1646635176266,0.18772434,38188.0,38182.0,0.27961351]
[1646635176468,0.18772434,38188.0,38183.0,0.392239]
[1646635176671,0.18772434,38188.0,38182.0,0.27961351]
[1646635176868,0.18772434,38188.0,38183.0,0.392239]
[1646635177068,0.18772434,38188.0,38182.0,0.05]
[1646635177471,0.18772434,38188.0,38183.0,0.065509]
[1646635177872,0.18772434,38188.0,38184.0,9.5e-05]
[1646635180230,0.18772434,38188.0,38184.0,0.131103]
[1646635180430,0.18772434,38188.0,38184.0,0.181103]
[1646635180627,0.18772434,38188.0,38184.0,0.050095]
[1646635180828,0.18772434,38188.0,38184.0,9.5e-05]
[1646635183076,0.18772434,38188.0,38183.0,0.06561171]
[1646635183474,0.18772434,38188.0,38183.0,9.471e-05]
[1646635183973,0.28772434,38188.0,38183.0,9.471e-05]
[1646635184774,0.50129361,38188.0,38183.0,9.471e-05]
[1646635185175,0.50129361,38188.0,38183.0,0.06561271]
[1646635187423,0.75594852,38188.0,38183.0,0.06561271]
[1646635187822,0.75594852,38188.0,38185.0,9.485e-05]
[1646635188025,0.21356927,38187.0,38185.0,9.485e-05]
[1646635188229,2.39201504,38186.0,38172.0,0.65495813]
[1646635188428,2.39201504,38186.0,38172.0,0.0002205]
[1646635188429,0.21352372,38181.0,38172.0,0.0002205]
[1646635188623,0.36582372,38180.0,38172.0,0.0002205]
[1646635188828,0.0523,38179.0,38171.0,1.4257681]
[1646635189023,0.1,38177.0,38172.0,0.00022047]
[1646635189223,0.45277376,38180.0,38172.0,0.00022047]
[1646635189625,0.45277376,38180.0,38172.0,0.38748343]
[1646635190123,0.45277376,38180.0,38171.0,1.04573189]
[1646635190322,0.45277376,38180.0,38172.0,0.00022046]
[1646635191172,0.45277376,38180.0,38171.0,1.04573189]
[1646635191372,0.45277376,38180.0,38172.0,0.06575546]
[1646635191772,0.392239,38179.0,38172.0,0.06575546]
[1646635191973,0.66629748,38180.0,38172.0,0.06575546]
[1646635192373,0.66629748,38180.0,38172.0,0.065535]
[1646635192575,0.66629748,38180.0,38172.0,0.06575547]
[1646635192774,0.392239,38179.0,38174.0,8.967e-05]
[1646635192975,0.66629748,38180.0,38174.0,8.967e-05]
[1646635193176,0.392239,38179.0,38174.0,8.967e-05]
[1646635193373,0.66629748,38180.0,38174.0,8.967e-05]
[1646635193578,0.392239,38179.0,38174.0,8.967e-05]
[1646635193976,0.66629748,38180.0,38174.0,8.967e-05]
[1646635194220,0.392239,38179.0,38174.0,8.967e-05]
[1646635195024,0.392239,38178.0,38174.0,8.967e-05]
[1646635195224,0.66629748,38180.0,38174.0,8.967e-05]
[1646635195421,0.392239,38179.0,38174.0,8.967e-05]
[1646635195824,0.66629748,38180.0,38174.0,8.967e-05]
[1646635195825,0.392239,38178.0,38174.0,8.967e-05]
[1646635196028,0.66629748,38180.0,38174.0,8.967e-05]
[1646635196226,0.392239,38179.0,38174.0,8.967e-05]
[1646635196429,0.38598502,38179.0,38171.0,0.32976543]
[1646635197426,0.38598502,38179.0,38172.0,0.065535]
[1646635197626,0.16661804,38174.0,38171.0,0.32976543]
[1646635198278,0.16661804,38174.0,38171.0,0.37976543]
[1646635198880,0.38598502,38179.0,38171.0,0.37976543]
[1646635199080,0.48605759,38180.0,38172.0,0.065533]
[1646635199276,0.38591362,38179.0,38172.0,0.065533]
[1646635200077,0.59226922,38179.0,38172.0,0.065533]
[1646635202633,0.19548479,38173.0,38171.0,0.37976543]
[1646635202833,0.77815262,38172.0,38171.0,0.37976543]
[1646635203034,0.77815262,38172.0,38171.0,0.32976543]
[1646635203234,0.87815262,38172.0,38171.0,0.32976543]
[1646635203432,0.544539,38172.0,38171.0,0.32976543]
[1646635205681,0.544539,38172.0,38171.0,0.30182851]
[1646635206083,0.92880654,38172.0,38171.0,0.30182851]
[1646635206486,0.92880654,38172.0,38170.0,0.00022625]
[1646635206487,1.642239,38171.0,38170.0,0.00022625]
[1646635206691,2.69401272,38171.0,38170.0,0.00022625]
[1646635206883,2.79401272,38171.0,38163.0,0.4134]
[1646635207083,2.79401272,38171.0,38169.0,0.00022625]
[1646635207084,0.99112448,38170.0,38169.0,0.00022625]
[1646635207285,1.63615239,38170.0,38169.0,0.00022625]
[1646635207583,1.71585076,38170.0,38169.0,0.00022625]
[1646635207784,1.72065576,38170.0,38169.0,0.00022625]
[1646635207982,1.71585076,38170.0,38163.0,0.4134]
[1646635208185,0.15991004,38167.0,38163.0,0.4134]
[1646635208383,0.492239,38164.0,38163.0,0.4134]
[1646635208589,1.66355076,38164.0,38163.0,0.4134]
[1646635208983,1.71585076,38164.0,38163.0,0.4134]
[1646635212827,1.71585076,38164.0,38163.0,0.41351879]
[1646635214271,1.278189,38164.0,38163.0,0.41351879]
[1646635217026,1.66355076,38164.0,38163.0,0.41351879]
[1646635221989,1.278189,38164.0,38163.0,0.41351879]
[1646635223990,0.88595,38164.0,38163.0,0.41351879]
[1646635224228,0.78595,38164.0,38163.0,0.41351879]
[1646635225629,0.78595,38164.0,38163.0,0.41973979]
[1646635226531,0.78595,38164.0,38160.0,0.4199]
[1646635226729,0.78595,38164.0,38161.0,0.442256]
[1646635227333,0.78595,38164.0,38162.0,0.065552]
[1646635227731,0.78595,38164.0,38163.0,0.05]
[1646635227983,0.78595,38164.0,38163.0,0.05011879]
[1646635228684,0.78595,38164.0,38163.0,0.00011879]
[1646635229284,0.78595,38164.0,38163.0,0.05011879]
[1646635229484,0.78595,38164.0,38163.0,0.00011879]
[1646635231086,1.278217,38164.0,38163.0,0.00011879]
[1646635231288,1.1045123,38164.0,38163.0,0.00011879]
[1646635232929,1.1045123,38164.0,38160.0,0.00023539]
[1646635233331,0.16051614,38160.0,38156.0,0.05]
[1646635233531,0.16051614,38160.0,38157.0,0.392267]
[1646635234743,0.16051614,38160.0,38157.0,0.39249349]
[1646635235776,0.16051614,38160.0,38157.0,0.392267]
[1646635235976,0.16051614,38160.0,38157.0,0.39249349]
[1646635236777,0.16051614,38160.0,38157.0,0.45804649]
[1646635236979,0.16051614,38160.0,38157.0,0.66999863]
[1646635237176,0.16051614,38160.0,38157.0,0.67022512]
[1646635237782,0.16051614,38160.0,38159.0,0.00013465]
[1646635237980,0.16051614,38160.0,38159.0,0.39240165]
[1646635238782,0.16051614,38160.0,38159.0,0.00013465]
[1646635242981,0.16051614,38160.0,38158.0,0.00013465]
[1646635243178,0.16051614,38160.0,38159.0,0.392267]
[1646635243380,0.16051614,38160.0,38158.0,0.00035538]
[1646635244178,0.16051614,38160.0,38158.0,0.00013465]
[1646635244584,0.16051614,38160.0,38159.0,0.392267]
[1646635245779,0.1,38162.0,38159.0,0.392267]
[1646635246380,0.78595,38164.0,38159.0,1.04010795]
[1646635246583,0.78595,38164.0,38161.0,0.21273763]
[1646635246829,0.78595,38164.0,38162.0,0.82965032]
[1646635247028,0.78595,38164.0,38163.0,0.38510332]
[1646635247228,0.78595,38164.0,38163.0,0.77733832]
[1646635247629,0.78595,38164.0,38163.0,0.99007595]
[1646635249932,0.78595,38164.0,38163.0,0.77733832]
[1646635253187,0.78595,38164.0,38163.0,0.99057496]
[1646635254737,0.78595,38164.0,38163.0,0.77742675]
[1646635255140,0.78595,38164.0,38163.0,0.99057161]
[1646635255741,0.78595,38164.0,38163.0,0.77742675]
[1646635256238,0.78595,38164.0,38163.0,0.39232343]
[1646635256440,0.215608,38164.0,38163.0,0.39232343]
[1646635256638,0.215608,38164.0,38163.0,0.60557897]
[1646635258176,0.215608,38164.0,38163.0,0.39232343]
[1646635261378,0.215608,38164.0,38163.0,0.78119521]
[1646635261578,0.215608,38164.0,38163.0,0.39232343]
[1646635262532,0.215608,38164.0,38163.0,0.94672707]
[1646635262933,0.1,38173.0,38165.0,0.065527]
[1646635263131,0.1,38173.0,38166.0,1.0207669]
[1646635263333,0.21375112,38175.0,38166.0,1.0207669]
[1646635263534,0.2669925,38177.0,38169.0,0.22479052]
[1646635263535,0.21375112,38176.0,38169.0,0.22479052]
[1646635263732,0.21375112,38176.0,38170.0,0.392147]
[1646635263933,0.21375112,38176.0,38170.0,0.392146]
[1646635264734,0.21375112,38176.0,38168.0,0.392167]
[1646635265135,0.21375112,38176.0,38167.0,0.1]
[1646635265335,0.21375112,38176.0,38166.0,0.31343112]
[1646635265590,0.21375112,38175.0,38166.0,0.36343112]
[1646635265788,0.21167097,38172.0,38166.0,0.36343112]
[1646635265989,0.38887178,38171.0,38165.0,0.33233112]
[1646635266193,0.21167097,38172.0,38165.0,0.33233112]
[1646635266194,0.21167097,38172.0,38165.0,0.1189]
[1646635266389,0.21547228,38170.0,38165.0,0.1189]
[1646635266590,0.1,38169.0,38166.0,0.392197]
[1646635266791,0.1,38169.0,38164.0,0.36189324]
[1646635266990,0.1,38169.0,38165.0,0.392207]
[1646635267192,0.1,38169.0,38164.0,0.36189324]
[1646635267991,0.1,38169.0,38165.0,0.392208]
[1646635269929,0.1,38169.0,38164.0,0.14846212]
[1646635271831,0.48887178,38169.0,38164.0,0.14846212]
[1646635272232,0.25382807,38168.0,38164.0,0.14846212]
[1646635272532,0.38887178,38167.0,38164.0,0.14846212]
[1646635272832,0.1,38169.0,38166.0,0.392198]
[1646635273080,0.1,38169.0,38164.0,0.14846212]
[1646635273081,0.1,38169.0,38167.0,0.392186]
[1646635273279,0.1,38169.0,38164.0,0.14846212]
[1646635273481,0.1,38169.0,38165.0,0.392206]
[1646635274680,0.1,38169.0,38165.0,0.392209]
[1646635274878,0.1,38169.0,38165.0,0.392208]
[1646635275679,0.1,38169.0,38164.0,0.14846212]
[1646635275979,0.1,38169.0,38165.0,0.392208]
[1646635277631,0.1,38169.0,38167.0,8.785e-05]
[1646635278234,0.77490752,38172.0,38168.0,0.392177]
[1646635278235,0.21013017,38172.0,38168.0,0.392177]
[1646635279436,0.52042104,38174.0,38168.0,0.392177]
[1646635279637,0.52042104,38174.0,38167.0,8.785e-05]
[1646635280484,4.26e-06,38167.0,38166.0,0.392192]
[1646635282786,4.26e-06,38167.0,38166.0,0.542192]
[1646635282987,4.26e-06,38167.0,38166.0,0.392192]
[1646635287641,4.26e-06,38167.0,38166.0,0.39230641]
[1646635288099,4.26e-06,38167.0,38166.0,0.49230641]
[1646635288801,4.26e-06,38167.0,38166.0,0.44230641]
[1646635293634,4.26e-06,38167.0,38166.0,0.70909532]
[1646635295985,4.26e-06,38167.0,38166.0,0.44230641]
[1646635298989,4.26e-06,38167.0,38166.0,0.70899867]
[1646635299250,4.26e-06,38167.0,38166.0,0.70899305]
[1646635299450,4.26e-06,38167.0,38166.0,0.44230641]
[1646635299650,4.26e-06,38167.0,38166.0,0.5556932]
[1646635300855,4.26e-06,38167.0,38166.0,0.00011441]
[1646635301956,0.21843234,38167.0,38166.0,0.00011441]
[1646635302754,0.21843234,38167.0,38164.0,0.1485516]
[1646635303187,4.26e-06,38167.0,38164.0,0.1485516]
[1646635303387,4.26e-06,38167.0,38165.0,0.34221]
[1646635303886,4.26e-06,38167.0,38164.0,0.1485516]
[1646635304689,0.201113,38166.0,38164.0,0.1485516]
[1646635304895,0.77969104,38165.0,38164.0,0.1485516]
[1646635305288,0.48743104,38165.0,38164.0,0.1485516]
[1646635305488,0.70119561,38165.0,38164.0,0.1485516]
[1646635305690,0.48743104,38165.0,38164.0,0.1485516]
[1646635305887,0.87969104,38165.0,38164.0,0.1485516]
[1646635306489,0.1,38165.0,38164.0,0.1485516]
[1646635306750,0.59173213,38166.0,38164.0,0.1485516]
[1646635306950,0.78606,38165.0,38164.0,0.1485516]
[1646635307554,0.78606,38165.0,38164.0,0.14846212]
[1646635307851,1.17349104,38165.0,38164.0,0.14846212]
[1646635308352,1.37524901,38165.0,38164.0,0.14846212]
[1646635308754,0.78606,38165.0,38164.0,0.14846212]
[1646635309752,0.78606,38165.0,38164.0,0.49068312]
[1646635312694,0.7859445,38165.0,38164.0,0.49077289]
[1646635316645,0.7859445,38165.0,38164.0,0.4906877]
[1646635330743,0.7859445,38165.0,38164.0,0.87811874]
[1646635330944,0.7859445,38165.0,38164.0,0.4906877]
[1646635332343,0.7859445,38165.0,38164.0,0.87811874]
[1646635332743,0.70735006,38165.0,38164.0,0.87811874]
[1646635334092,0.70735006,38165.0,38164.0,0.97811874]
[1646635336097,0.70735006,38165.0,38164.0,0.5906877]
[1646635338636,0.70735006,38165.0,38164.0,0.4906877]
[1646635348286,0.70735006,38165.0,38164.0,0.9906877]
[1646635349085,0.70735006,38165.0,38164.0,1.0406877]
[1646635354342,0.70735006,38165.0,38164.0,1.4269704]
[1646635354541,0.70725499,38165.0,38164.0,1.4269704]
[1646635354740,0.70725499,38165.0,38164.0,1.63986886]
[1646635354942,0.31406899,38165.0,38164.0,1.63986886]
[1646635355592,0.21376457,38172.0,38165.0,1.442212]
[1646635355793,0.21376457,38172.0,38168.0,0.5]
[1646635355993,0.21376457,38173.0,38168.0,0.32196768]
[1646635356193,0.21376457,38173.0,38169.0,0.06553]
[1646635356993,0.21376457,38173.0,38169.0,0.13105568]
[1646635357194,0.21376457,38173.0,38170.0,0.05]
[1646635357994,0.21376457,38174.0,38170.0,0.05]
[1646635358395,0.21376457,38175.0,38170.0,0.44127552]
[1646635359539,0.21376457,38176.0,38170.0,0.44127552]
[1646635359739,0.21376457,38175.0,38170.0,0.44127552]
[1646635359938,0.21376457,38176.0,38170.0,0.44127552]
[1646635360339,0.21376457,38175.0,38170.0,0.44127552]
[1646635360542,0.21376457,38176.0,38170.0,0.05]
[1646635362742,0.21376457,38176.0,38172.0,8.862e-05]
[1646635366397,0.21376457,38175.0,38172.0,8.862e-05]
[1646635367039,0.21376457,38176.0,38172.0,8.862e-05]
[1646635367538,0.21376457,38176.0,38170.0,0.05008833]
[1646635370038,0.21376457,38176.0,38171.0,0.39127552]
[1646635370239,0.21376457,38176.0,38170.0,0.05008833]
[1646635371585,0.21376457,38176.0,38173.0,0.75760537]
[1646635371787,0.21376457,38176.0,38173.0,0.80760537]
[1646635374742,0.21396686,38177.0,38173.0,0.80760537]
[1646635374943,0.21376457,38177.0,38173.0,0.80760537]
[1646635375244,0.21396686,38177.0,38173.0,0.80760537]
[1646635376343,0.21376457,38177.0,38173.0,0.80760537]
[1646635376644,0.21376457,38176.0,38173.0,0.80760537]
[1646635377645,0.21376457,38176.0,38175.0,8.818e-05]
[1646635378891,0.21369431,38176.0,38175.0,8.818e-05]
[1646635379293,0.21369431,38176.0,38175.0,0.29978818]
[1646635379493,0.21369431,38176.0,38175.0,8.818e-05]
[1646635379689,0.21369431,38176.0,38175.0,0.05008818]
[1646635379892,0.21369431,38176.0,38175.0,8.818e-05]
[1646635380690,0.21369431,38176.0,38175.0,8.87e-06]
[1646635381491,6.594e-05,38175.0,38174.0,0.065535]
[1646635382543,6.594e-05,38175.0,38173.0,0.93866737]
[1646635383137,6.594e-05,38175.0,38174.0,0.26]
[1646635383849,0.21376025,38175.0,38174.0,0.26]
[1646635384042,0.74306474,38175.0,38174.0,0.26]
[1646635384241,1.17818094,38175.0,38174.0,0.26]
[1646635384440,0.992255,38174.0,38173.0,0.53481411]
[1646635384639,1.778115,38174.0,38173.0,0.53481411]
[1646635384838,2.09839577,38174.0,38173.0,0.53481411]
[1646635385042,2.19839577,38174.0,38173.0,0.53481411]
[1646635385240,1.878115,38174.0,38173.0,0.53481411]
[1646635385490,1.878115,38174.0,38173.0,0.58481411]
[1646635386089,1.878115,38174.0,38173.0,0.01462153]
[1646635386889,2.19839577,38174.0,38173.0,0.01462153]
[1646635387488,1.878115,38174.0,38173.0,0.01483023]
[1646635389092,1.278115,38174.0,38173.0,0.27483023]
[1646635389346,1.54521638,38174.0,38173.0,0.32483023]
[1646635390948,1.278115,38174.0,38173.0,0.32483023]
[1646635391349,1.54520773,38174.0,38173.0,0.32483023]
[1646635391552,1.278115,38174.0,38173.0,0.32483023]
[1646635395190,1.278115,38174.0,38173.0,0.27483023]
[1646635398450,2.00330608,38174.0,38173.0,0.27483023]
[1646635398650,1.330415,38174.0,38173.0,0.27483023]
[1646635398850,1.68319126,38174.0,38173.0,0.27483023]
[1646635400253,2.00366167,38174.0,38173.0,0.27483023]
[1646635400492,1.65088541,38174.0,38173.0,0.27483023]
[1646635401396,1.59858541,38174.0,38173.0,0.27483023]